[Event "Marmaris Karya-19 GM-May 2022"]
[Site "Icmeler-Marmaris"]
[Date "2022.05.16"]
[Round "7.4"]
[White "Darban, Morteza"]
[Black "Gholami, Aryan"]
[Result "1/2-1/2"]
[ECO "B15"]
[WhiteElo "2279"]
[BlackElo "2530"]
[Annotator "TA"]
[PlyCount "162"]
[EventDate "2022.05.15"]
[EventType "schev"]
[EventCountry "TUR"]
[SourceTitle "playchess.com"]
[Source "ChessBase"]
[SourceQuality "1"]
[TimeControl "5400+30"]

{[%evp 17,162,17,6,3,8,0,0,0,6,0,1,0,9,0,0,0,29,25,29,18,16,11,41,39,48,35,29,14,26,3,12,12,19,13,18,0,6,7,0,0,0,0,0,0,6,4,6,9,16,16,15,0,0,0,0,0,0,0,10,14,50,0,0,0,0,0,0,0,0,0,0,0,0,0,0,0,0,0,0,0,0,0,8,8,114,105,125,0,0,0,43,0,0,0,65,6,23,16,9,17,14,12,8,23,12,4,83,0,0,0,0,0,0,0,0,0,0,0,166,159,158,172,209,195,154,8,8,8,42,59,18,8,8,8,8,8,8,8,8,8,8,8,8,8,8,8,8]} 1. e4 {[%emt 0:07:00]} c6 {[%emt 0:01:00]} 2. d4 {[%emt 0:00:30]} d5 {[%emt 0:00:30]} 3. Nd2 {[%emt 0:00:00]} dxe4 {[%emt 0:00:00]} 4. Nxe4 {[%emt 0:00:00]} Nf6 {[%emt 0:00:00]} 5. Nxf6+ {[%emt 0:00:30]} exf6 {[%emt 0:00:30]} 6. Bc4 {[%emt 0:00:00]} Bd6 {[%emt 0:00:00]} 7. Qe2+ {[%emt 0:00:00]} Qe7 {[%emt 0:00:00]} 8. Qxe7+ {[%emt 0:00:00]} Kxe7 {[%emt 0:00:00]} 9. Ne2 {[%emt 0:00:00]} Bf5 {[%emt 0:03:00]} 10. c3 {[%emt 0:00:30] B15: Caro-Kann: 3 Nc3: 3...g6 and 3...dxe4 4 Nxe4 Nf6 5 Nxf6+ exf6.} Re8 {[%emt 0:02:30]} 11. Bf4 {[%emt 0:00:30]} Bxf4 {[%emt 0:06:30]} 12. Nxf4 {[%emt 0:00:30]} Kf8+ {[%emt 0:01:30]} 13. Kd2 {[%emt 0:00:30]} c5 {[%emt 0:00:30]} 14. dxc5 {[%emt 0:04:30] [#]} Nd7 $146 {[%emt 0:15:30] Strongly threatening ...Re4.} ({Resist} 14... Re4 15. Bd5 $1 Re7 16. Rad1 $16) ({Predecessor:} 14... Nc6 15. Rae1 Ne5 16. Bb5 Rec8 17. c6 Nxc6 18. Bd3 Rd8 19. Kc2 Rxd3 20. Nxd3 Rd8 {½-½ (27) Poormosavi,S (2290)-Salimova,N (2403) Ayvalik 2022}) 15. Bb5 {[%emt 0:03:30]} Rad8 {[%emt 0:02:30]} 16. Rad1 {[%emt 0:00:30]} Re4 {[%emt 0:07:30]} 17. Ne2 {[%emt 0:16:30][%cal Bf4e2,Be2d4,Bd4b5][%mdl 32]} Nxc5+ {[%emt 0:00:30]} 18. Kc1 {[%emt 0:00:30]} Rxd1+ {[%emt 0:00:30]} 19. Rxd1 {[%emt 0:01:30]} Bd7 {[%emt 0:14:30]} 20. Nd4 {[%emt 0:07:30]} Bxb5 {[%emt 0:00:30]} 21. Nxb5 $14 {[%emt 0:00:00][%mdl 4096] Endgame KRN-KRN} a6 {[%emt 0:00:30]} 22. Nd4 {[%emt 0:07:00]} g6 {[%emt 0:02:30]} 23. Kd2 {[%emt 0:08:30]} h5 {[%emt 0:00:30]} 24. f3 {[%emt 0:05:30]} Re8 {[%emt 0:02:30]} 25. b3 {[%emt 0:01:30]} h4 {[%emt 0:02:30]} 26. Re1 {[%emt 0:00:30]} Rd8 {[%emt 0:00:30]} 27. Kc2 {[%emt 0:00:30]} b5 {[%emt 0:02:30]} 28. Ra1 {[%emt 0:09:30]} Rd5 {[%emt 0:01:30]} 29. Re1 {[%emt 0:00:30]} f5 {[%emt 0:02:30]} 30. Nc6 {[%emt 0:03:30]} Ne6 {[%emt 0:04:30]} 31. Nb4 {[%emt 0:00:30]} Rd6 {[%emt 0:00:30]} 32. Rd1 {[%emt 0:01:30]} Ke7 {[%emt 0:00:00]} 33. Nd5+ {[%emt 0:01:30]} Kd7 {[%emt 0:02:00]} 34. h3 {[%emt 0:03:52]} Kc6 {[%emt 0:02:30]} 35. Ne7+ {[%emt 0:00:19]} Kc7 {[%emt 0:00:30] And now ...Rxd1 would win.} (35... Kd7 $5 36. Nd5 Nc7 $11) 36. Nd5+ {[%emt 0:00:03]} Kb7 {[%emt 0:00:30]} 37. c4 {[%emt 0:02:28]} Rd8 {[%emt 0:03:30]} 38. Kc3 {[%emt 0:01:10]} Rc8 {[%emt 0:02:30]} 39. Rd2 {[%emt 0:02:15]} (39. a4 $14) 39... a5 $11 {[%emt 0:04:37]} 40. Ne3 {[%emt 0:02:33]} b4+ {[%emt 0:03:30]} 41. Kc2 {[%emt 0:00:14]} Kc6 {[%emt 0:00:45]} 42. Nd5 {[%emt 0:02:37]} Re8 {[%emt 0:00:31] Against Ne7+} 43. Kd1 {[%emt 0:04:04]} Ra8 {[%emt 0:03:37]} 44. Ne7+ {[%emt 0:00:51]} Kc7 {[%emt 0:00:07]} 45. Nd5+ {[%emt 0:00:18]} Kb7 {[%emt 0:00:04]} 46. Ke2 {[%emt 0:00:50]} Ra7 {[%emt 0:00:16]} 47. Ne7 {[%emt 0:03:35]} Kc7 {[%emt 0:00:18]} 48. Ke3 {[%emt 0:00:20]} Ra8 {[%emt 0:01:33]} 49. Nd5+ {[%emt 0:00:22]} Kb7 {[%emt 0:00:09]} 50. Nf4 {[%emt 0:01:25]} Nc5 {[%emt 0:00:17]} (50... g5 $11 51. Nxe6 fxe6) 51. Rd5 $16 {[%emt 0:01:42]} Kc6 {[%emt 0:01:20]} 52. Ne2 {[%emt 0:01:32]} ({White has to play} 52. Kd4 $1 $16 Ne6+ 53. Nxe6 fxe6 54. Re5) 52... Re8+ $11 {[%emt 0:03:10]} 53. Kd2 {[%emt 0:00:35]} Kb6 {[%emt 0:01:24]} 54. Rd6+ {[%emt 0:00:45]} Kc7 {[%emt 0:00:25]} 55. Rd5 {[%emt 0:00:11]} Nb7 {[%emt 0:01:13]} (55... Kb6 $11) 56. Rd4 {[%emt 0:00:41]} ({White should try} 56. Rb5 $14) 56... a4 {[%emt 0:00:50]} 57. Rxh4 {[%emt 0:00:10]} axb3 {[%emt 0:00:39]} 58. axb3 {[%emt 0:00:01]} Nc5 {[%emt 0:00:06]} 59. Nc1 {[%emt 0:00:15]} Rd8+ $1 {[%emt 0:00:53]} 60. Kc2 {[%emt 0:00:03]} Ne6 $1 {[%emt 0:00:37]} 61. Rh7 {[%emt 0:00:36]} Rd7 {[%emt 0:01:29] [#]} (61... Nd4+ $11 {remains equal.} 62. Kb2 Rd7) 62. Nd3 {[%emt 0:01:30]} (62. Ne2 $1 $16) 62... Nd4+ {[%emt 0:00:05]} 63. Kb2 {[%emt 0:00:10]} Nxf3 $1 {[%emt 0:00:43]} 64. Nxb4 {[%emt 0:00:59]} Ng5 $1 {[%emt 0:00:08]} 65. Rg7 {[%emt 0:00:45]} Ne6 {[%emt 0:01:09]} 66. Rh7 {[%emt 0:00:14]} Ng5 {[%emt 0:00:21]} 67. Rg7 {[%emt 0:00:16] aiming for Nd5+.} Kd6 $2 {[%emt 0:01:37] [#]} (67... Ne6 $11 68. Rh7 Rd2+ 69. Kc3 Rxg2) 68. Nd5 $1 $18 {[%emt 0:01:04]} Ke5 {[%emt 0:00:05]} 69. Rg8 {[%emt 0:00:30]} f4 {[%emt 0:00:18]} 70. Re8+ {[%emt 0:00:28]} Ne6 {[%emt 0:00:02]} 71. Re7 {[%emt 0:00:36] White is more active.} (71. Ra8 $16) 71... Rxe7 $11 {[%emt 0:00:17]} 72. Nxe7 {[%emt 0:00:01] KN-KN} g5 {[%emt 0:00:28]} (72... Kd4 $5 {[%cal Rd4e3]}) 73. Kc3 {[%emt 0:00:30] b4 is the strong threat.} f5 {[%emt 0:00:01]} 74. b4 {[%emt 0:00:26][%cal Oh3h4] Black must now prevent h4! The position is equal.} g4 {[%emt 0:00:06]} 75. hxg4 {[%emt 0:00:20]} fxg4 {[%emt 0:00:01]} 76. Kd3 {[%emt 0:00:19]} f3 {[%emt 0:00:49]} 77. gxf3 {[%emt 0:00:25]} gxf3 {[%emt 0:00:01]} 78. Ke3 {[%emt 0:01:30]} f2 {[%emt 0:00:09]} 79. Kxf2 {[%emt 0:00:23] Threatens to win with Ke3.} Kd4 {[%emt 0:00:08]} 80. c5 {[%emt 0:00:13]} Nxc5 {[%emt 0:00:09]} 81. bxc5 {[%emt 0:00:05]} Kxc5 {[%emt 0:00:01] Weighted Error Value: White=0.09 (flawless) /Black=0.11 (very precise)} 1/2-1/2

[Event "Marmaris Karya-19 GM-May 2022"]
[Site "Icmeler-Marmaris"]
[Date "2022.05.16"]
[Round "8.1"]
[White "Toufighi, Homayoon"]
[Black "Caglar, Sila"]
[Result "1-0"]
[ECO "A03"]
[WhiteElo "2439"]
[BlackElo "2133"]
[Annotator "TA"]
[PlyCount "113"]
[EventDate "2022.05.15"]
[EventType "schev"]
[EventCountry "TUR"]
[SourceTitle "playchess.com"]
[Source "ChessBase"]
[SourceQuality "1"]
[TimeControl "5400+30"]

{[%evp 10,113,2,-23,-9,-26,21,7,69,-9,-7,-24,-21,-87,-16,-94,-87,-100,-100,-91,-87,-103,-85,-77,-80,-105,-106,-286,-244,-249,-173,-171,-116,-123,0,0,0,0,0,0,0,0,0,0,7,0,0,0,10,0,0,-17,16,0,52,52,44,52,43,47,20,7,14,14,20,13,21,7,11,0,21,31,23,0,0,0,0,0,0,0,0,0,0,-204,0,0,0,0,569,558,737,711,680,443,672,530,612,554,506,0,0,0,832,836,1441,1435]} 1. b3 {[%emt 0:06:00]} d5 {[%emt 0:03:00]} 2. Bb2 {[%emt 0:00:00]} Nf6 {[%emt 0:00:30]} 3. f4 {[%emt 0:00:00]} e6 {[%emt 0:00:30]} 4. Nf3 {[%emt 0:00:00]} Bd6 {[%emt 0:01:30]} 5. e3 {[%emt 0:00:00]} c5 {[%emt 0:00:30]} 6. Bd3 {[%emt 0:01:30]} Nc6 {[%emt 0:01:30] A03: Bird's Opening with 1...d5.} 7. O-O {[%emt 0:04:30]} Qc7 {[%emt 0:00:30] [#]} (7... O-O $142) 8. Qe1 $146 {[%emt 0:00:30]} ({Predecessor:} 8. Nc3 a6 9. Ne2 Bd7 10. Ng3 O-O-O 11. a3 h5 12. h3 h4 13. Ne2 Nh5 14. Qe1 {1-0 (29) Lagarde,M (2640)-Merstorf,D (1927) Europe Echecs INT 2021}) 8... Ne7 {[%emt 0:05:30]} (8... Be7 $11) 9. Bxf6 {[%emt 0:01:30] White is more active.} (9. c4 $14) 9... gxf6 $11 {[%emt 0:00:00][%cal Bg7f6,Bf6f5][%mdl 32]} 10. Qh4 {[%emt 0:00:30]} f5 {[%emt 0:00:00]} 11. c4 {[%emt 0:04:30]} (11. Bb5+ $11 {remains equal.} Bd7 12. Nc3) 11... Ng6 {[%emt 0:01:30]} ({Black should play} 11... d4 $1 $17) 12. Qh5 {[%emt 0:00:30]} (12. Qe1 $1 $11 {keeps the balance.}) 12... d4 $1 $17 {[%emt 0:02:30]} 13. Na3 {[%emt 0:05:30]} a6 $1 {[%emt 0:00:00]} 14. Nc2 {[%emt 0:03:30]} Bd7 {[%emt 0:00:00][%cal Bc8d7,Bd7c6,Bc6e4][%mdl 32]} 15. g3 {[%emt 0:01:30]} dxe3 {[%emt 0:00:30]} 16. dxe3 {[%emt 0:00:00]} Bc6 {[%emt 0:00:30] Against e4} 17. Be2 {[%emt 0:03:00]} O-O-O {[%emt 0:00:30]} 18. Nh4 $2 {[%emt 0:00:30]} (18. Nfe1 $17 {was worth a try.}) 18... Be4 {[%emt 0:00:30]} 19. Ne1 {[%emt 0:00:30]} Be7 {[%emt 0:00:30] And now ...Bxh4 would win. A strong pair of Bishops.} 20. Nhg2 {[%emt 0:00:00] [#]} Rd2 {[%emt 0:02:30]} (20... Qa5 $1 $19 21. Rd1 Rxd1 22. Bxd1 Qxa2) 21. Bf3 {[%emt 0:03:00]} Qc6 {[%emt 0:02:30]} (21... Bf6 $17 22. Rd1 Bxf3 23. Qxf3 Rxa2) 22. Rf2 {[%emt 0:01:30]} Rd7 {[%emt 0:02:30]} 23. Bxe4 {[%emt 0:01:30]} Qxe4 {[%emt 0:00:30]} 24. Rd1 {[%emt 0:00:00]} Rxd1 {[%emt 0:00:30]} 25. Qxd1 {[%emt 0:00:00]} h5 {[%emt 0:00:30]} 26. h4 {[%emt 0:01:30]} Nf8 {[%emt 0:02:30]} 27. Rd2 {[%emt 0:03:30]} Qc6 {[%emt 0:00:30]} 28. Nf3 {[%emt 0:00:30][%cal Be1f3,Bf3g1,Bg1e2][%mdl 32]} f6 {[%emt 0:00:30]} 29. Kf2 {[%emt 0:00:30]} Nd7 {[%emt 0:00:30]} 30. Nge1 {[%emt 0:01:30][%cal Bg2e1,Be1c2,Bc2a3,Ba3b1,Bb1c3][%mdl 32]} e5 {[%emt 0:03:30]} 31. Nc2 {[%emt 0:01:30]} e4 {[%emt 0:00:30]} (31... b5 $11) 32. Ng1 $1 $14 {[%emt 0:00:00]} Nb6 {[%emt 0:00:30]} 33. Ne2 {[%emt 0:00:00]} Qe8 {[%emt 0:01:30]} 34. Na3 {[%emt 0:02:30]} Qg6 {[%emt 0:00:30]} 35. Nb1 {[%emt 0:01:30]} Qg4 {[%emt 0:00:30]} 36. Qh1 {[%emt 0:00:30] Prevents Qf3+.} Rd8 {[%emt 0:09:30]} 37. Rxd8+ {[%emt 0:00:30]} (37. a3 {is interesting.} Rg8 38. Nbc3 Rd8 39. Ke1) 37... Kxd8 {[%emt 0:00:30]} 38. Nbc3 {[%emt 0:00:30]} Ke8 {[%emt 0:00:30]} 39. Ke1 {[%emt 0:01:30]} Qg8 {[%emt 0:00:30]} 40. Kd2 {[%emt 0:02:30]} Kf7 {[%emt 0:00:30]} 41. Qc1 {[%emt 0:01:30]} Qd8+ {[%emt 0:00:30]} 42. Ke1 {[%emt 0:00:30]} Qd3 {[%emt 0:00:30]} 43. Kf2 {[%emt 0:00:00]} Bd8 {[%emt 0:00:30]} 44. Qa3 {[%emt 0:00:00]} Nd7 {[%emt 0:01:30]} 45. Nd5 {[%emt 0:00:30]} Qd2 {[%emt 0:00:30]} 46. Qa4 $2 {[%emt 0:02:30]} (46. Qc1 $11 {and White is okay.} Qxc1 47. Nxc1) 46... Ke6 $2 {[%emt 0:00:30]} (46... Nb6 $19 47. Qa3 Nxd5 48. cxd5 Ba5) 47. a3 {[%emt 0:00:30]} Qc2 {[%emt 0:03:30]} (47... Ba5 $2 48. b4 Bd8 49. bxc5 $18 (49. Kf1 Kd6 $11)) 48. Ndc3 {[%emt 0:01:30]} Be7 $2 {[%emt 0:01:30][%mdl 8192] [#]} (48... Qd3 $11 {and Black stays safe.}) 49. Qa5 $1 $18 {[%emt 0:00:30]} Kd6 {[%emt 0:04:30]} 50. Nd5 {[%emt 0:04:30] Hoping for Qc7+.} Qxb3 {[%emt 0:00:30]} 51. Qc7+ {[%emt 0:00:30]} Ke6 {[%emt 0:00:00]} 52. Qc8 {[%emt 0:00:30] Intending Qe8 and mate.} Kd6 {[%emt 0:01:00]} 53. Qe8 {[%emt 0:04:30]} Bf8 {[%emt 0:00:30]} 54. Qxh5 $2 $40 {[%emt 0:01:30][%mdl 128] White attacks.} ({White should try} 54. Qg6 $18) 54... Qxc4 $11 {[%emt 0:00:30]} 55. Nec3 {[%emt 0:00:00]} Qd3 $2 {[%emt 0:02:30][%mdl 8192]} (55... Nb6 $11 56. Nxb6 Qxc3 57. Qxf5 Qd2+ 58. Kf1 Qd1+ 59. Kg2 Qf3+ 60. Kh3 (60. Kh2 Qf2+ 61. Kh3 Qf1+ 62. Kg4 Qf3+ 63. Kh3 Qh1+ 64. Kg4 Qf3+ 65. Kh3 Qh1+ 66. Kg4 Qf3+ $11) 60... Qh1+ 61. Kg4 Qf3+ 62. Kh3 Qh1+ 63. Kg4 Qf3+ 64. Kh3) 56. Qxf5 $18 {[%emt 0:03:00]} Qd2+ {[%emt 0:05:30]} 57. Kg1 {[%emt 0:00:30] Quite a comeback for White.  Weighted Error Value: White=0.32/Black=0.40} 1-0

[Event "Marmaris Karya-19 GM-May 2022"]
[Site "Icmeler-Marmaris"]
[Date "2022.05.16"]
[Round "8.2"]
[White "Maghalashvili, Davit"]
[Black "Gunduz, Umut Erdem"]
[Result "1-0"]
[ECO "C41"]
[WhiteElo "2456"]
[BlackElo "2316"]
[Annotator "TA"]
[PlyCount "41"]
[EventDate "2022.05.15"]
[EventType "schev"]
[EventCountry "TUR"]
[SourceTitle "playchess.com"]
[Source "ChessBase"]
[SourceQuality "1"]
[TimeControl "5400+30"]

{[%evp 17,41,14,23,10,47,52,63,54,81,60,62,33,213,221,323,299,309,324,370,361,462,448,420,317,331,264]} 1. e4 {[%emt 0:01:00]} e5 {[%emt 0:02:00]} 2. Nf3 {[%emt 0:00:00]} d6 {[%emt 0:02:30]} 3. d4 {[%emt 0:01:00]} exd4 {[%emt 0:00:30]} 4. Nxd4 {[%emt 0:00:30]} Nf6 {[%emt 0:00:30]} 5. Nc3 {[%emt 0:00:00]} Be7 {[%emt 0:00:00]} 6. Be2 {[%emt 0:00:00]} O-O {[%emt 0:00:00]} 7. O-O {[%emt 0:00:30]} Re8 {[%emt 0:01:30]} 8. f4 {[%emt 0:01:30]} Bf8 {[%emt 0:01:30]} 9. Bf3 {[%emt 0:00:30]} c6 {[%emt 0:01:30]} 10. Re1 {[%emt 0:04:30] C41: Philidor Defence.} Nbd7 {[%emt 0:09:30]} 11. Be3 {[%emt 0:02:30]} g6 {[%emt 0:05:30] [#]} 12. Bf2 $146 {[%emt 0:00:30] White is more active. White is slightly better.} ({Predecessor:} 12. Qd2 Nb6 13. b3 Bg4 14. Bf2 c5 15. Ndb5 Bxf3 16. gxf3 a6 17. Na3 Qc7 18. Rad1 {1-0 (49) Schloetter,H (1717)-Berresheim,H (1546) Nickenich 2015}) 12... Bh6 {[%emt 0:05:30]} 13. Nde2 {[%emt 0:02:30]} Qc7 {[%emt 0:12:30]} 14. g4 {[%emt 0:00:30][%cal Bg2g4,Bg4g5][%mdl 32] Threatens to win with g5.} (14. a4 {is interesting.} Nc5 15. e5 Ng4 16. exd6 Nxf2 17. Qd4) 14... Bg7 $2 {[%emt 0:02:30]} (14... d5 $1 $14 15. g5 (15. exd5 Bxf4 16. Nxf4 Rxe1+ 17. Qxe1 Qxf4 $14) 15... dxe4) 15. g5 $18 {[%emt 0:00:30]} Nh5 {[%emt 0:00:00]} (15... b5 {was necessary.} 16. gxf6 Nxf6) 16. Bxh5 {[%emt 0:00:30]} gxh5 {[%emt 0:00:00] [#]} 17. Ng3 $1 {[%emt 0:00:30]} Nf8 {[%emt 0:03:30]} 18. Nxh5 {[%emt 0:00:30]} Ng6 {[%emt 0:00:30]} 19. Nxg7 {[%emt 0:04:30]} Kxg7 {[%emt 0:00:00]} 20. Qf3 {[%emt 0:01:30]} Kg8 {[%emt 0:00:00]} 21. Rad1 {[%emt 0:02:30] Prevents d5. Black did not feel at home in the position after the opening.  Weighted Error Value: White=0.13 (very precise) /Black=0.59} 1-0

[Event "Marmaris Karya-19 GM-May 2022"]
[Site "Icmeler-Marmaris"]
[Date "2022.05.16"]
[Round "8.3"]
[White "Gholami, Aryan"]
[Black "Ozsakallioglu, Okan"]
[Result "1-0"]
[ECO "C00"]
[WhiteElo "2530"]
[BlackElo "2312"]
[Annotator "TA"]
[PlyCount "55"]
[EventDate "2022.05.15"]
[EventType "schev"]
[EventCountry "TUR"]
[SourceTitle "playchess.com"]
[Source "ChessBase"]
[SourceQuality "1"]
[TimeControl "5400+30"]

{[%evp 9,55,7,18,21,23,30,34,27,29,1,34,6,66,56,67,60,70,74,84,81,87,97,84,61,63,62,68,60,80,50,58,41,144,138,146,143,157,164,157,143,145,143,257,254,253,247,213,212]} 1. e4 {[%emt 0:01:00]} c5 {[%emt 0:02:00]} 2. Nf3 {[%emt 0:00:00]} e6 {[%emt 0:00:00]} 3. g3 {[%emt 0:00:00]} Nc6 {[%emt 0:03:00]} 4. Bg2 {[%emt 0:00:30]} Nf6 {[%emt 0:00:00]} 5. Qe2 {[%emt 0:00:00]} Be7 {[%emt 0:01:00]} 6. e5 {[%emt 0:02:00] C00: French: Unusual White 2nd moves.} Ng4 {[%emt 0:00:30]} 7. h3 {[%emt 0:04:30]} Nh6 {[%emt 0:00:00] [#]} 8. c3 $146 {[%emt 0:00:30] White is slightly better.} ({Predecessor:} 8. d4 Nxd4 9. Nxd4 cxd4 10. Bxh6 gxh6 11. O-O Qb6 12. Na3 d5 13. exd6 Qxd6 14. Nb5 {1-0 (23) So,W (2770)-Van Foreest,J (2673) Chess.com INT 2020}) 8... Nf5 {[%emt 0:05:00]} 9. Na3 {[%emt 0:04:30]} d5 {[%emt 0:00:30]} 10. exd6 {[%emt 0:00:30]} Bf6 {[%emt 0:00:00]} (10... Bxd6 $11 11. d3 O-O) 11. O-O $14 {[%emt 0:00:30]} O-O {[%emt 0:00:00]} 12. d3 {[%emt 0:04:30]} Qxd6 {[%emt 0:04:30]} 13. Nc4 {[%emt 0:03:30]} Qe7 {[%emt 0:02:30]} 14. g4 {[%emt 0:00:30]} Nh4 {[%emt 0:00:30]} 15. Nxh4 {[%emt 0:01:30]} Bxh4 {[%emt 0:00:30]} 16. f4 {[%emt 0:00:30]} h6 {[%emt 0:00:30] Inhibits g5.} 17. Be3 {[%emt 0:03:30]} Bd7 {[%emt 0:01:30]} 18. a3 $36 {[%emt 0:01:30][%mdl 2048] White has some pressure.} a5 {[%emt 0:03:30] Against b4} 19. Nb6 {[%emt 0:09:30]} Rad8 {[%emt 0:00:30]} 20. Qc2 {[%emt 0:00:00]} Qd6 {[%emt 0:11:30]} (20... Nb8 $14) 21. Nc4 $16 {[%emt 0:01:00]} Qe7 {[%emt 0:00:00]} 22. Qb3 {[%emt 0:04:30] Threatens to win with Qb6. White is more active.} b5 {[%emt 0:01:00]} 23. Qxb5 {[%emt 0:00:30]} Nd4 {[%emt 0:02:30]} 24. Qxa5 {[%emt 0:00:00]} Nb3 {[%emt 0:00:30]} 25. Qb6 {[%emt 0:02:00]} Nxa1 {[%emt 0:00:30]} (25... Rb8 $16 26. Qa7 Bb5 27. Qxe7 Bxe7) 26. Bxc5 $18 {[%emt 0:00:30]} ({Don't take} 26. Rxa1 $6 Rb8 27. Qxc5 (27. Bxc5 Rxb6 28. Bxe7 Bxe7 $11) 27... Ba4 $16) 26... Qf6 {[%emt 0:00:30][%cal Oa1c2]} 27. Bxf8 {[%emt 0:00:30]} Rxf8 {[%emt 0:00:00]} 28. Qc7 {[%emt 0:05:30] Weighted Error Value: White=0.05 (flawless) /Black=0.24 (precise)} 1-0

[Event "Marmaris Karya-19 GM-May 2022"]
[Site "Icmeler-Marmaris"]
[Date "2022.05.16"]
[Round "8.4"]
[White "Sevdimaliyev, Urfan"]
[Black "Darban, Morteza"]
[Result "1/2-1/2"]
[WhiteElo "2331"]
[BlackElo "2279"]
[Annotator "TA"]
[PlyCount "19"]
[EventDate "2022.05.15"]
[EventType "schev"]
[EventCountry "TUR"]
[SourceTitle "playchess.com"]
[Source "ChessBase"]
[SourceQuality "1"]
[TimeControl "5400+30"]

{[%evp 18,19,49,0]} 1. d4 {[%emt 0:06:00]} Nf6 {[%emt 0:03:00]} 2. c4 {[%emt 0:00:00]} g6 {[%emt 0:00:30]} 3. Nc3 {[%emt 0:00:00]} Bg7 {[%emt 0:00:00]} 4. e4 {[%emt 0:00:00]} d6 {[%emt 0:00:00]} 5. Nf3 {[%emt 0:00:00]} O-O {[%emt 0:00:00]} 6. Be2 {[%emt 0:00:00] [#]} Bg4 $146 {[%emt 0:00:00]} ({Predecessor:} 6... e5 7. O-O Bg4 8. d5 a5 9. Ne1 Bxe2 10. Qxe2 Na6 11. Nd3 b6 12. Bg5 h6 13. Bd2 Nd7 14. Rab1 Ndc5 15. Nxc5 Nxc5 16. Be3 f5 {½-½ (54) Giri,A (2773)-Van Foreest,J (2714) Oslo 2022}) 7. Ng1 {[%emt 0:00:00]} Bc8 {[%emt 0:00:30]} 8. Nf3 {[%emt 0:00:00]} Bg4 {[%emt 0:00:30]} 9. Ng1 {[%emt 0:00:00]} Bc8 {[%emt 0:00:00]} 10. Nf3 {[%emt 0:00:00] 10.Bf3 is the recent fashion.} (10. Be3 $14) 1/2-1/2

[Event "Marmaris Karya-19 GM-May 2022"]
[Site "Icmeler-Marmaris"]
[Date "2022.05.16"]
[Round "8.5"]
[White "Benidze, Davit"]
[Black "Ozdemir, Serhan Berat"]
[Result "1-0"]
[ECO "C00"]
[WhiteElo "2425"]
[BlackElo "2117"]
[Annotator "TA"]
[PlyCount "51"]
[EventDate "2022.05.15"]
[EventType "schev"]
[EventCountry "TUR"]
[SourceTitle "playchess.com"]
[Source "ChessBase"]
[SourceQuality "1"]
[TimeControl "5400+30"]

{[%evp 12,51,14,6,13,0,0,0,0,0,34,27,41,37,37,33,56,55,53,41,66,66,71,69,124,116,145,75,155,154,158,154,178,113,106,113,81,60,77,72,317,240]} 1. e4 {[%emt 0:00:00]} c5 {[%emt 0:13:00]} 2. Nf3 {[%emt 0:00:30]} e6 {[%emt 0:00:30]} 3. Qe2 {[%emt 0:00:30]} Nc6 {[%emt 0:01:30]} 4. g3 {[%emt 0:00:30]} d6 {[%emt 0:01:30]} 5. Bg2 {[%emt 0:00:00]} Nf6 {[%emt 0:00:30]} 6. O-O {[%emt 0:00:00]} Be7 {[%emt 0:01:30]} 7. c3 {[%emt 0:02:30]} e5 {[%emt 0:00:30] C00: French: Unusual White 2nd moves.} 8. Na3 {[%emt 0:01:30][%cal Bb1a3,Ba3c2,Bc2e3][%mdl 32]} O-O {[%emt 0:00:30]} 9. Nc2 {[%emt 0:00:00]} Re8 {[%emt 0:01:30] The position is equal.} 10. d3 {[%emt 0:01:00]} Bf8 {[%emt 0:05:30]} 11. Bg5 {[%emt 0:00:30]} h6 {[%emt 0:02:30]} 12. Bxf6 {[%emt 0:00:00]} Qxf6 {[%emt 0:00:30]} 13. Ne3 {[%emt 0:00:00]} g6 {[%emt 0:01:30]} 14. Nd2 {[%emt 0:00:00]} Bg7 {[%emt 0:01:30] [#]} 15. Rae1 $146 {[%emt 0:00:00]} ({Predecessor:} 15. f4 exf4 16. gxf4 Qd8 17. Qf2 Kh7 18. Kh1 Rb8 19. Rae1 b6 20. e5 Ne7 21. Ne4 dxe5 22. fxe5 {1-0 (35) Demchenko,A (2670)-Ruck,R (2502) Pontevedra 2018}) 15... Be6 {[%emt 0:05:30]} 16. f4 {[%emt 0:00:30]} exf4 {[%emt 0:25:30]} 17. gxf4 {[%emt 0:00:30]} Ne7 {[%emt 0:00:00] Against f5} (17... Qd8 $14) 18. Qf2 {[%emt 0:05:30] f5 is the strong threat.} Bd7 {[%emt 0:00:00]} 19. Qg3 {[%emt 0:01:30]} (19. f5 $142) 19... h5 {[%emt 0:03:30] [#]} (19... d5 $142) 20. e5 $1 $36 {[%emt 0:16:30][%mdl 2048] Black is under strong pressure.} dxe5 {[%emt 0:03:30]} 21. Ne4 {[%emt 0:00:30]} Qe6 {[%emt 0:00:00] [#]} 22. Nxc5 {[%emt 0:02:30] Pair of Knights!} (22. fxe5 $1 $18 Bxe5 23. Qg5) 22... Qd6 {[%emt 0:00:00]} (22... exf4 $2 23. Qxf4 (23. Nxe6 fxg3 24. Nc7 gxh2+ 25. Kh1 Rab8 $16) 23... Qf6 24. Qxf6 $18) 23. Nxd7 {[%emt 0:09:30] White is more active.} (23. Nxb7 Qc7) 23... Qxd7 {[%emt 0:00:00]} 24. fxe5 {[%emt 0:00:30] Hoping for d4.} Qxd3 {[%emt 0:00:00]} 25. Qf3 {[%emt 0:00:00]} Nc6 $2 {[%emt 0:03:30]} (25... Rf8 $16) 26. Rd1 {[%emt 0:04:00] Weighted Error Value: White=0.10 (very precise) /Black=0.30} 1-0